bitfinex/quotes_BTCUSD_20230107
["timestamp","ask_amount","ask_price","bid_price","bid_amount"]
[1673119373976,0.62785604,16951.0,16950.0,2.29200685]
[1673119375225,0.80495783,16951.0,16950.0,2.29200685]
[1673119376828,0.45475929,16951.0,16950.0,2.29200685]
[1673119379526,0.45475929,16951.0,16950.0,2.46881459]
[1673119379807,0.45475929,16951.0,16950.0,2.95956159]
[1673119381621,0.45475929,16951.0,16950.0,2.78275385]
[1673119381857,0.45475929,16951.0,16950.0,2.95956159]
[1673119382351,0.45475929,16951.0,16950.0,2.78275385]
[1673119385957,0.45475929,16951.0,16950.0,2.95956159]
[1673119386204,0.45475929,16951.0,16950.0,2.78275385]
[1673119386690,0.45475929,16951.0,16950.0,2.29200685]
[1673119389134,0.45475929,16951.0,16950.0,2.46881459]
[1673119393284,0.18910179,16951.0,16950.0,2.46881459]
[1673119397884,0.18910179,16951.0,16950.0,2.29200685]
[1673119398365,0.18910179,16951.0,16950.0,2.46881459]
[1673119398644,0.18910179,16951.0,16950.0,2.29200685]
[1673119398890,0.18910179,16951.0,16950.0,2.46881459]
[1673119410477,0.18910179,16951.0,16950.0,2.29200685]
[1673119410735,0.18910179,16951.0,16950.0,2.46881459]
[1673119412974,0.45475929,16951.0,16950.0,2.29200685]
[1673119415098,0.45475929,16951.0,16950.0,2.46881459]
[1673119422629,0.012,16951.0,16950.0,3.28286053]
[1673119422890,0.012,16951.0,16950.0,4.07360753]
[1673119423158,0.012,16951.0,16950.0,5.06651879]
[1673119423416,0.012,16951.0,16950.0,3.95069365]
[1673119423696,0.012,16951.0,16950.0,4.54106893]
[1673119423955,0.91278557,16953.0,16951.0,0.6]
[1673119424208,0.91278557,16953.0,16951.0,1.83048267]
[1673119424689,0.91278557,16953.0,16951.0,2.00736685]
[1673119425464,0.91278557,16953.0,16952.0,0.58409599]
[1673119425720,0.98078557,16953.0,16952.0,0.58409599]
[1673119425978,0.97578557,16953.0,16952.0,0.58409599]
[1673119426250,0.51075929,16953.0,16952.0,0.58409599]
[1673119426491,0.44275929,16953.0,16952.0,0.58409599]
[1673119426746,0.55375929,16953.0,16952.0,1.18099599]
[1673119427772,0.55375929,16953.0,16952.0,1.18127552]
[1673119428038,0.55366235,16953.0,16952.0,1.18127552]
[1673119428318,0.55359575,16953.0,16952.0,1.18127552]
[1673119429066,1.16128075,16953.0,16952.0,1.18127552]
[1673119429613,0.55359575,16953.0,16952.0,1.18127552]
[1673119430850,1.16128075,16953.0,16952.0,1.18127552]
[1673119431097,0.55359575,16953.0,16952.0,1.18127552]
[1673119431611,0.55359575,16953.0,16952.0,1.77117552]
[1673119435327,0.28810179,16953.0,16952.0,1.77117552]
[1673119442305,0.55343779,16953.0,16952.0,1.77089599]
[1673119442802,0.72653454,16953.0,16952.0,1.77089599]
[1673119444300,0.90393588,16953.0,16952.0,1.77089599]
[1673119444565,1.16929296,16953.0,16952.0,1.77089599]
[1673119445808,1.16929296,16953.0,16952.0,1.77117552]
[1673119446535,1.16929296,16953.0,16952.0,1.77089599]
[1673119447038,1.16929296,16953.0,16952.0,1.77117552]
[1673119448980,1.43465997,16953.0,16952.0,1.77117552]
[1673119449499,0.99192263,16953.0,16952.0,1.77117552]
[1673119450242,0.99192263,16953.0,16952.0,1.77107178]
[1673119450243,1.59192263,16953.0,16952.0,1.77107178]
[1673119450508,0.99192263,16953.0,16952.0,1.77107178]
[1673119454065,1.16884709,16953.0,16952.0,1.77107178]
[1673119454588,0.81864855,16953.0,16952.0,1.77107178]
[1673119454844,1.16884709,16953.0,16952.0,1.77107178]
[1673119455611,0.99192263,16953.0,16952.0,1.77107178]
[1673119456625,1.16886404,16953.0,16952.0,1.77107178]
[1673119456890,1.16886399,16953.0,16952.0,1.77107178]
[1673119457630,0.81866266,16953.0,16952.0,1.77107178]
[1673119458141,1.1688612,16953.0,16952.0,1.77107178]
[1673119458395,0.81866266,16953.0,16952.0,1.77107178]
[1673119465434,0.55329565,16953.0,16952.0,1.77107178]
[1673119465714,0.55329565,16953.0,16952.0,2.26175278]
[1673119468122,0.55329565,16953.0,16952.0,1.67776053]
[1673119468389,0.55329565,16953.0,16952.0,3.18707367]
[1673119468390,0.37635708,16953.0,16952.0,3.18707367]
[1673119468643,0.37635708,16953.0,16952.0,3.8232078]
[1673119469200,0.37635708,16953.0,16952.0,4.51031179]
[1673119469461,0.37635708,16953.0,16952.0,4.21113208]
[1673119469722,0.37635708,16953.0,16952.0,4.21113494]
[1673119469978,0.37635708,16953.0,16952.0,4.21113639]
[1673119470231,0.37635708,16953.0,16952.0,2.80708342]
[1673119470518,0.37635708,16953.0,16952.0,2.5417487]
[1673119476616,0.37635708,16953.0,16952.0,2.8417487]
[1673119477917,0.37635708,16953.0,16952.0,2.5417487]
[1673119478199,0.37635708,16953.0,16952.0,2.8417487]
[1673119478668,0.37635708,16953.0,16952.0,2.68691483]
[1673119478926,0.37635708,16953.0,16952.0,3.24034298]
[1673119479175,0.37635708,16953.0,16952.0,3.240343]
[1673119479429,0.37635708,16953.0,16952.0,2.69332186]
[1673119479681,0.37635708,16953.0,16952.0,2.39332186]
[1673119480189,0.111,16953.0,16952.0,2.21643768]
[1673119480445,0.111,16953.0,16952.0,1.72575668]
[1673119481191,0.111,16953.0,16952.0,2.21643768]
[1673119481712,0.111,16953.0,16952.0,1.72575668]
[1673119482717,0.111,16953.0,16952.0,2.21643768]
[1673119483269,0.111,16953.0,16952.0,2.51643768]
[1673119486024,0.111,16953.0,16952.0,2.69332186]
[1673119486280,0.111,16953.0,16952.0,2.21643768]
[1673119486537,0.111,16953.0,16952.0,1.72575668]
[1673119487096,0.101,16953.0,16952.0,2.21643768]
[1673119487882,0.101,16953.0,16952.0,1.72575668]
[1673119488419,0.101,16953.0,16952.0,2.21643768]
[1673119489142,0.101,16953.0,16952.0,1.72575668]
[1673119489865,0.096,16953.0,16952.0,2.21643768]
[1673119490416,0.096,16953.0,16952.0,2.39332186]
[1673119490677,0.096,16953.0,16952.0,2.21643768]
[1673119491194,0.096,16953.0,16952.0,1.72575668]
[1673119491716,0.096,16953.0,16952.0,2.21643768]
[1673119492472,0.096,16953.0,16952.0,1.72575668]
[1673119493241,0.096,16953.0,16952.0,2.21643768]
[1673119494278,0.096,16953.0,16952.0,1.90264086]
[1673119495070,0.096,16953.0,16952.0,2.39332186]
[1673119497245,0.096,16953.0,16952.0,1.90264086]
[1673119501382,0.096,16953.0,16952.0,1.89536586]
[1673119501615,0.096,16953.0,16952.0,2.44826366]
[1673119504334,0.096,16953.0,16952.0,2.71359838]
[1673119506345,0.096,16953.0,16952.0,3.5852528]
[1673119506849,0.096,16953.0,16952.0,4.0759338]
[1673119507944,0.096,16953.0,16952.0,2.9111598]
[1673119508235,0.096,16953.0,16952.0,3.6002788]
[1673119509029,0.096,16953.0,16952.0,4.0909598]
[1673119510046,0.096,16953.0,16952.0,4.44500287]
[1673119511042,0.096,16953.0,16952.0,4.0909598]
[1673119512539,0.096,16953.0,16952.0,4.44500287]
[1673119513255,0.096,16953.0,16952.0,4.26811869]
[1673119513500,0.096,16953.0,16952.0,4.4450567]
[1673119514045,0.096,16953.0,16952.0,4.26811869]
[1673119514303,0.096,16953.0,16952.0,4.48557499]
[1673119514523,0.096,16953.0,16952.0,4.79712231]
[1673119514819,0.096,16953.0,16952.0,4.62001727]
[1673119515068,0.096,16953.0,16952.0,4.12933627]
[1673119518552,0.096,16953.0,16952.0,4.97406034]
[1673119518797,0.096,16953.0,16952.0,5.09712231]
[1673119519080,0.096,16953.0,16952.0,4.79712231]
[1673119519351,0.096,16953.0,16952.0,5.09712231]
[1673119519592,0.096,16953.0,16952.0,4.79712231]
[1673119521571,0.096,16953.0,16952.0,5.09712231]
[1673119522623,0.096,16953.0,16952.0,4.79712231]
[1673119523382,0.096,16953.0,16952.0,4.9740447]
[1673119523634,0.096,16953.0,16952.0,4.79712231]
[1673119523942,0.096,16953.0,16952.0,4.97404423]
[1673119524158,0.096,16953.0,16952.0,4.79712231]
[1673119525159,0.096,16953.0,16952.0,5.09712231]
[1673119525660,0.096,16953.0,16952.0,4.79712231]
[1673119525909,0.096,16953.0,16952.0,5.09712231]
[1673119526161,0.096,16953.0,16952.0,4.79712231]
[1673119526925,0.096,16953.0,16952.0,4.97404429]
[1673119527187,0.096,16953.0,16952.0,4.79712231]
[1673119527752,0.096,16953.0,16952.0,4.48336462]
[1673119527968,0.096,16953.0,16952.0,4.30644131]
[1673119528474,0.096,16953.0,16952.0,4.79712231]
[1673119528705,0.096,16953.0,16952.0,4.97404405]
[1673119528948,0.096,16953.0,16952.0,4.48336305]
[1673119529195,0.096,16953.0,16952.0,4.12931998]
[1673119529717,0.096,16953.0,16952.0,4.30644131]
[1673119529969,0.096,16953.0,16952.0,4.79712231]
[1673119530219,0.096,16953.0,16952.0,5.09712231]
[1673119530474,0.096,16953.0,16952.0,4.79712231]
[1673119530728,0.096,16953.0,16952.0,5.09712231]
[1673119537310,0.096,16953.0,16952.0,4.79712231]
[1673119537564,0.096,16953.0,16952.0,4.97402761]
[1673119537848,0.096,16953.0,16952.0,4.79712231]
[1673119538075,0.096,16953.0,16952.0,4.30644131]
[1673119538624,0.096,16953.0,16952.0,4.79712231]
[1673119538848,0.096,16953.0,16952.0,4.48334736]
[1673119539094,0.096,16953.0,16952.0,4.60644131]
[1673119539345,0.096,16953.0,16952.0,4.48334743]
[1673119539587,0.096,16953.0,16952.0,5.09712231]
[1673119550739,0.096,16953.0,16952.0,4.30644131]
[1673119551715,0.096,16953.0,16952.0,4.11795721]
[1673119551975,0.02014425,16954.0,16953.0,1.18401853]
[1673119552231,0.02014425,16954.0,16953.0,4.83041962]
[1673119552489,0.01917493,16954.0,16953.0,5.32106762]
[1673119552742,0.01917493,16954.0,16953.0,5.62106762]
[1673119553214,0.01917493,16954.0,16953.0,5.32106762]
[1673119553467,0.01917493,16954.0,16953.0,5.62106762]
[1673119553963,0.03517493,16954.0,16953.0,5.33006762]
[1673119554211,0.03517493,16954.0,16953.0,5.63006762]
[1673119554459,0.03517493,16954.0,16953.0,5.6300095]
[1673119555221,0.03517493,16954.0,16953.0,5.3300095]
[1673119555966,0.03517493,16954.0,16953.0,5.6300095]
[1673119558462,0.03517493,16954.0,16953.0,5.3300095]
[1673119560752,0.03517493,16954.0,16953.0,4.45835508]
[1673119562038,0.03517493,16954.0,16953.0,4.19300363]
[1673119573383,0.03517493,16954.0,16953.0,3.59300363]
[1673119573688,0.03517493,16954.0,16953.0,3.10235563]
[1673119574524,0.2121135,16954.0,16953.0,3.10235563]
[1673119574777,0.2121135,16954.0,16953.0,2.92551278]
[1673119575081,0.2121135,16954.0,16953.0,3.10235563]
[1673119575849,0.2121135,16954.0,16953.0,2.3666982]
[1673119576098,1.08516551,16954.0,16953.0,2.3666982]
[1673119576864,1.08359469,16954.0,16953.0,2.3666982]
[1673119586400,0.47590969,16954.0,16953.0,2.3666982]
[1673119586895,0.64916966,16954.0,16953.0,1.18288453]
[1673119587155,1.25685466,16954.0,16953.0,1.18288453]
[1673119589610,1.08350573,16954.0,16953.0,1.18288453]
[1673119591328,1.43370427,16954.0,16953.0,1.18288453]
[1673119591585,1.08350573,16954.0,16953.0,1.18288453]
[1673119592150,0.82601927,16954.0,16953.0,1.18288453]
[1673119592421,0.47582073,16954.0,16953.0,1.18288453]
[1673119592679,1.08350573,16954.0,16953.0,1.18288453]
[1673119593974,1.43370427,16954.0,16953.0,1.18288453]
[1673119595143,1.43370427,16954.0,16953.0,0.59301853]
[1673119595394,0.64916966,16954.0,16953.0,0.59301853]
[1673119596185,1.25685466,16954.0,16953.0,0.59301853]
[1673119598193,1.43422499,16954.0,16953.0,0.009]
[1673119598418,2.01348207,16954.0,16953.0,0.00888233]
[1673119598694,1.43422499,16954.0,16953.0,0.00888233]
[1673119599462,0.82653999,16954.0,16952.0,1.84937338]
[1673119599707,0.44204972,16953.0,16952.0,1.84937338]
[1673119601489,0.44204972,16953.0,16952.0,1.85937338]
[1673119601747,0.44204972,16953.0,16952.0,0.67959738]
[1673119601997,1.42493326,16953.0,16952.0,0.68359738]
[1673119602260,1.07473472,16953.0,16952.0,0.68359738]
[1673119602766,1.04973472,16953.0,16952.0,0.66959738]
[1673119603280,1.22311337,16953.0,16952.0,0.66959738]
[1673119603525,1.04972446,16953.0,16952.0,0.66959738]
[1673119603776,1.399923,16953.0,16952.0,0.66959738]
[1673119604280,1.22311337,16953.0,16952.0,0.66959738]
[1673119604536,1.24811337,16953.0,16952.0,0.67359738]
[1673119604793,1.24811337,16953.0,16952.0,0.66959738]
[1673119605053,1.4269234,16953.0,16952.0,0.80959738]
[1673119605597,1.07672486,16953.0,16952.0,0.80959738]
[1673119605821,0.81923419,16953.0,16952.0,0.80959738]
[1673119606100,0.46903565,16953.0,16952.0,0.80959738]
[1673119606343,0.64242837,16953.0,16952.0,0.80959738]
[1673119608182,1.25011337,16953.0,16952.0,0.80959738]
[1673119608404,1.25011337,16953.0,16952.0,0.80953078]
[1673119609574,0.64242837,16953.0,16952.0,0.80953078]
[1673119621693,1.08516571,16953.0,16952.0,0.80953078]
[1673119621931,0.81993588,16953.0,16952.0,0.80953078]
[1673119623211,0.81993588,16953.0,16952.0,0.14]
[1673119629017,0.81993588,16953.0,16952.0,0.1398928]
[1673119635442,0.46973734,16953.0,16952.0,0.1398928]
[1673119636414,0.82379167,16953.0,16952.0,0.1398928]
[1673119637383,0.46973734,16953.0,16952.0,0.1398928]
[1673119639138,0.82385466,16953.0,16952.0,0.1398928]
[1673119639366,0.46973734,16953.0,16952.0,0.1398928]
[1673119640563,0.8238754,16953.0,16952.0,0.1398928]
[1673119641812,0.46973734,16953.0,16952.0,0.1398928]
[1673119648281,0.82388623,16953.0,16952.0,0.1398928]
[1673119648949,0.46973734,16953.0,16952.0,0.1398928]
[1673119649172,0.82388389,16953.0,16952.0,0.1398928]
[1673119649421,0.46973734,16953.0,16952.0,0.1398928]
[1673119652041,0.46973734,16953.0,16952.0,0.13979727]
[1673119652287,1.06973734,16953.0,16952.0,0.13979727]
[1673119652529,1.07742234,16953.0,16952.0,0.13979727]
[1673119652768,0.46973734,16953.0,16952.0,0.13979727]
[1673119661790,0.634685,16953.0,16952.0,0.13979727]
[1673119662046,0.027,16953.0,16952.0,0.13979727]
[1673119662320,0.634685,16953.0,16952.0,0.13979727]
[1673119664296,0.027,16953.0,16952.0,0.13979727]
[1673119664549,0.634685,16953.0,16952.0,0.13979727]
[1673119666026,0.027,16953.0,16952.0,0.13979727]
[1673119667846,0.634685,16953.0,16952.0,0.13979727]
[1673119672527,1.234685,16953.0,16952.0,0.13970452]
[1673119673313,0.634685,16953.0,16952.0,0.13970452]
[1673119675086,0.027,16953.0,16952.0,0.13970452]
[1673119677635,0.634685,16953.0,16952.0,0.13970452]
[1673119680400,0.634685,16953.0,16952.0,0.14891177]
[1673119681460,0.627,16953.0,16952.0,0.14431177]
[1673119682221,0.634685,16953.0,16952.0,0.14431177]
[1673119689980,0.027,16953.0,16952.0,0.14431177]
[1673119690732,0.634685,16953.0,16952.0,0.14431177]
[1673119700356,0.027,16953.0,16952.0,0.14431177]
[1673119704744,0.027,16953.0,16952.0,0.14420282]
[1673119705046,0.627,16953.0,16952.0,0.14420282]
[1673119705331,1.234685,16953.0,16952.0,0.14420282]
[1673119705593,0.634685,16953.0,16952.0,0.14420282]
[1673119710983,0.634596,16953.0,16952.0,0.14420282]
[1673119715109,1.16598777,16953.0,16952.0,0.14420282]
[1673119715640,0.634596,16953.0,16952.0,0.14420282]
[1673119718437,0.026911,16953.0,16952.0,0.14420282]
[1673119718951,1.234596,16953.0,16952.0,0.13920282]
[1673119719499,1.234596,16953.0,16952.0,0.12446882]
[1673119720322,1.76598777,16953.0,16952.0,0.12446882]
[1673119722119,1.16598777,16953.0,16952.0,0.12446882]
[1673119727419,0.634596,16953.0,16952.0,0.12446882]
[1673119727883,0.026911,16953.0,16952.0,0.12446882]
[1673119729220,0.634596,16953.0,16952.0,0.12446882]
[1673119730447,0.026911,16953.0,16952.0,0.12446882]
[1673119732216,0.634596,16953.0,16952.0,0.12446882]
[1673119732460,1.16598777,16953.0,16952.0,0.12446882]
[1673119733711,0.55830277,16953.0,16952.0,0.12446882]
[1673119734422,1.16598777,16953.0,16952.0,0.12446882]
[1673119735842,0.55830277,16953.0,16952.0,0.12446882]
[1673119736609,1.16598777,16953.0,16952.0,0.12446882]
[1673119737560,0.55830277,16953.0,16952.0,0.12446882]
[1673119738266,1.16598777,16953.0,16952.0,0.12446882]
[1673119739772,0.026911,16953.0,16952.0,0.12446882]
[1673119740342,0.026911,16953.0,16952.0,0.12436815]
[1673119740589,0.626911,16953.0,16952.0,0.12436815]
[1673119741083,1.234596,16953.0,16952.0,0.12436815]
[1673119742403,0.026911,16953.0,16952.0,0.12436815]
[1673119744874,0.55830277,16953.0,16952.0,0.12436815]
[1673119745124,1.83083858,16953.0,16952.0,0.12436815]
[1673119762648,1.83083858,16953.0,16952.0,0.12425951]
[1673119766618,1.22315358,16953.0,16952.0,0.12425951]
[1673119767115,1.80241066,16953.0,16952.0,0.12425951]
[1673119767359,1.22315358,16953.0,16952.0,0.12425951]
[1673119767632,1.80241066,16953.0,16952.0,0.12425951]
[1673119767864,2.41009566,16953.0,16952.0,0.12425951]
[1673119776977,1.83083858,16953.0,16952.0,0.12425951]
[1673119779270,2.41009566,16953.0,16952.0,0.12425951]
[1673119779516,1.83083858,16953.0,16952.0,0.12425951]
[1673119779763,2.41009566,16953.0,16952.0,0.12425951]
[1673119782755,2.41009566,16953.0,16952.0,0.12414387]
[1673119789264,1.83083858,16953.0,16952.0,0.12414387]
[1673119790233,2.41009566,16953.0,16952.0,0.12414387]
[1673119799593,2.40999601,16953.0,16952.0,0.12414387]
[1673119800361,2.40999601,16953.0,16952.0,0.66572334]
[1673119801457,2.40273601,16953.0,16952.0,0.66572334]
[1673119802983,2.40036669,16953.0,16952.0,0.66572334]
[1673119803882,1.82110961,16953.0,16952.0,0.66572334]
[1673119806730,1.21342461,16953.0,16952.0,0.66572334]
[1673119807495,1.82110961,16953.0,16952.0,0.66572334]
[1673119809071,2.40036669,16953.0,16952.0,0.66572334]
[1673119810889,2.45884092,16953.0,16952.0,0.66572334]
[1673119811446,3.68174426,16953.0,16952.0,0.66572334]
[1673119814881,3.08412047,16953.0,16952.0,0.66572334]
[1673119819653,3.68174426,16953.0,16952.0,0.66572334]
[1673119821448,3.08412047,16953.0,16952.0,0.66572334]
[1673119821702,3.68174426,16953.0,16952.0,0.66572334]
[1673119821955,3.08412047,16953.0,16952.0,0.66572334]
[1673119822674,3.68174426,16953.0,16952.0,0.66572334]
[1673119827253,3.08412047,16953.0,16952.0,0.66572334]
[1673119827506,3.68174426,16953.0,16952.0,0.66561414]
[1673119827808,3.08412047,16953.0,16952.0,0.66561414]
[1673119828051,3.68174426,16953.0,16952.0,0.66561414]
[1673119829747,3.08412047,16953.0,16952.0,0.66561414]
[1673119839490,3.08412047,16953.0,16952.0,0.65087914]
[1673119847584,3.68174426,16953.0,16952.0,0.65087914]
[1673119848378,3.79278698,16953.0,16952.0,0.65087914]
[1673119851706,3.68174426,16953.0,16952.0,0.65087914]
[1673119860764,3.68174426,16953.0,16952.0,0.65076537]
[1673119866539,3.66456223,16953.0,16952.0,0.55078672]
[1673119869195,3.72556223,16953.0,16952.0,0.56178672]
[1673119870400,3.66456223,16953.0,16952.0,0.55078672]
[1673119870659,3.72556223,16953.0,16952.0,0.56178672]
[1673119872328,4.15886506,16953.0,16952.0,0.56178672]
[1673119872589,3.72556223,16953.0,16952.0,0.56178672]
[1673119880731,3.72547441,16953.0,16952.0,0.56178672]
[1673119890600,3.11778941,16953.0,16952.0,0.56178672]
[1673119901511,3.08237586,16953.0,16952.0,0.56178672]
[1673119901738,3.11778941,16953.0,16952.0,0.56178672]
[1673119904635,3.11778941,16953.0,16952.0,0.56169463]
[1673119910567,2.52016562,16953.0,16952.0,0.56169463]
[1673119912394,3.11772349,16953.0,16952.0,0.56169463]
[1673119912643,3.72540849,16953.0,16952.0,0.56169463]
[1673119912893,3.12785062,16953.0,16952.0,0.56169463]
[1673119913381,3.23266977,16953.0,16952.0,0.56169463]
[1673119914537,3.83023736,16953.0,16952.0,0.56169463]
[1673119915078,3.23266977,16953.0,16952.0,0.56169463]
[1673119916699,3.83023535,16953.0,16952.0,0.56169463]
[1673119916951,3.23266977,16953.0,16952.0,0.56169463]
[1673119917708,3.12785062,16953.0,16952.0,0.56169463]
[1673119918663,3.72546548,16953.0,16952.0,0.56169463]
[1673119919177,3.12785062,16953.0,16952.0,0.56169463]
[1673119920323,3.72549445,16953.0,16952.0,0.56169463]
[1673119925733,3.72549445,16953.0,16952.0,0.56159201]
[1673119928807,4.15879051,16953.0,16952.0,0.56159201]
[1673119931361,3.56114668,16953.0,16952.0,0.56159201]
[1673119936639,3.12785062,16953.0,16952.0,0.56159201]
[1673119936914,3.11790185,16953.0,16952.0,0.56159201]
[1673119938433,2.39743826,16953.0,16952.0,0.56159201]
[1673119938688,3.00512326,16953.0,16952.0,0.56159201]
[1673119940761,3.30512326,16953.0,16952.0,0.56159201]
[1673119942213,3.3963822,16953.0,16952.0,0.56159201]
[1673119943729,3.6963822,16953.0,16952.0,0.56159201]
[1673119946059,3.6963822,16953.0,16952.0,0.56148943]
[1673119946561,3.30512326,16953.0,16952.0,0.56148943]
[1673119947555,3.00512326,16953.0,16952.0,0.56148943]
[1673119948055,2.39743826,16953.0,16952.0,0.56148943]
[1673119956916,3.00512326,16953.0,16952.0,0.56148943]
[1673119957444,3.30512326,16953.0,16952.0,0.56148943]
[1673119957695,3.6963822,16953.0,16952.0,0.56148943]
[1673119964920,3.3963822,16953.0,16952.0,0.56148943]
[1673119965690,3.00512326,16953.0,16952.0,0.56148943]
[1673119965949,2.39743826,16953.0,16952.0,0.56148943]
[1673119966950,2.69743826,16953.0,16952.0,0.56148943]
[1673119967258,3.30512326,16953.0,16952.0,0.56148943]
[1673119969684,3.30512326,16953.0,16952.0,0.56141189]
[1673119970811,3.66651278,16953.0,16952.0,0.56141189]
[1673119971749,3.30512326,16953.0,16952.0,0.56141189]
[1673119979785,3.00512326,16953.0,16952.0,0.56141189]
[1673119980120,2.39743826,16953.0,16952.0,0.56141189]
[1673119981416,3.00512326,16953.0,16952.0,0.56141189]
[1673119982738,3.30512326,16953.0,16952.0,0.56141189]
[1673119983211,3.6963822,16953.0,16952.0,0.56141189]
[1673119984422,3.3963822,16953.0,16952.0,0.56141189]
[1673119984677,3.6963822,16953.0,16952.0,0.56141189]
[1673119990152,3.6963822,16953.0,16952.0,0.56130991]
[1673119990421,3.30512326,16953.0,16952.0,0.56130991]
[1673119990677,2.69743826,16953.0,16952.0,0.56130991]
[1673119991704,2.65702471,16953.0,16952.0,0.56130991]
[1673119991940,2.69243826,16953.0,16952.0,0.56130991]
[1673119993450,3.30012326,16953.0,16952.0,0.56130991]
[1673119995207,2.69243826,16953.0,16952.0,0.56130991]
[1673119995721,2.39243826,16953.0,16952.0,0.56130991]
[1673119996714,2.99022492,16953.0,16952.0,0.56130991]
[1673119999980,3.59790992,16953.0,16952.0,0.56130991]
[1673120004261,2.99022492,16953.0,16952.0,0.56130991]
[1673120006033,3.59790992,16953.0,16952.0,0.56130991]
[1673120007378,2.99022492,16953.0,16952.0,0.56130991]
[1673120012023,2.99022492,16953.0,16952.0,0.56123514]
[1673120018748,2.95481137,16953.0,16952.0,0.56123514]
[1673120018999,3.56249637,16953.0,16952.0,0.56123514]
[1673120023532,2.95481137,16953.0,16952.0,0.56123514]
[1673120035111,2.95481137,16953.0,16952.0,0.56114258]
[1673120039513,3.56249637,16953.0,16952.0,0.56114258]
[1673120040541,2.95481137,16953.0,16952.0,0.56114258]
[1673120042684,2.38055429,16953.0,16952.0,0.56114258]
[1673120042937,2.95981137,16953.0,16952.0,0.56114258]
[1673120043795,2.38055429,16953.0,16952.0,0.56114258]
[1673120044042,2.38055429,16953.0,16952.0,1.05182358]
[1673120044271,1.78276763,16953.0,16952.0,1.05182358]
[1673120044565,1.78276763,16953.0,16952.0,0.56114258]
[1673120045094,1.19290163,16953.0,16952.0,0.56114258]
[1673120047205,2.36202471,16953.0,16952.0,0.56114258]
[1673120047709,2.96970971,16953.0,16952.0,0.56114258]
[1673120048683,2.36202471,16953.0,16952.0,0.56114258]
[1673120048940,1.78276763,16953.0,16952.0,0.56114258]
[1673120050971,1.19056566,16953.0,16952.0,1.22331752]
[1673120051240,0.061,16953.0,16952.0,1.77228563]
[1673120051495,0.061,16953.0,16952.0,1.22331752]
[1673120051496,0.50341134,16953.0,16952.0,1.22331752]
[1673120052031,0.061,16953.0,16952.0,1.22331752]
[1673120052554,0.54880377,16954.0,16952.0,1.21231752]
[1673120052818,0.44240158,16953.0,16952.0,1.21231752]
[1673120053876,0.44240158,16953.0,16952.0,1.76180656]
[1673120054127,0.49940158,16953.0,16952.0,1.77180656]
[1673120056471,0.49940158,16953.0,16952.0,1.77169861]
[1673120058564,0.85309999,16953.0,16952.0,1.77067781]
[1673120062093,0.85309999,16953.0,16952.0,1.77169861]
[1673120062358,0.67590327,16953.0,16952.0,2.36159861]
[1673120062650,0.49900581,16953.0,16952.0,3.44217961]
[1673120063389,0.23380095,16953.0,16952.0,3.44217961]
[1673120064168,0.49900581,16953.0,16952.0,3.44217961]
[1673120065757,0.23380095,16953.0,16952.0,3.44217961]
[1673120072361,0.057,16953.0,16952.0,3.44217961]
[1673120074412,0.057,16953.0,16952.0,2.78102547]
[1673120074665,0.057,16953.0,16952.0,3.30818859]
[1673120075167,0.057,16953.0,16952.0,2.78102547]
[1673120075473,0.057,16953.0,16952.0,3.35611139]
[1673120075693,0.057,16953.0,16952.0,2.78102547]
[1673120076209,0.057,16953.0,16952.0,3.36588543]
[1673120076440,0.057,16953.0,16952.0,3.37821549]
[1673120076688,0.057,16953.0,16952.0,2.78102547]
[1673120077920,0.057,16953.0,16952.0,3.33141083]
[1673120078422,0.057,16953.0,16952.0,2.78102547]
[1673120078677,0.057,16953.0,16952.0,3.29587986]
[1673120079174,0.057,16953.0,16952.0,2.80519886]
[1673120085276,0.057,16953.0,16952.0,3.29587986]
[1673120085535,0.057,16953.0,16952.0,3.29563862]
[1673120093328,0.057,16953.0,16952.0,2.80495762]
[1673120093817,0.057,16953.0,16952.0,3.29563862]
[1673120094847,0.057,16953.0,16952.0,2.80495762]
[1673120096514,0.05691691,16953.0,16952.0,2.80495762]
[1673120100472,0.05691691,16953.0,16952.0,3.29563862]
[1673120101670,0.05691691,16953.0,16952.0,3.47248147]
[1673120102404,0.05232691,16953.0,16952.0,3.29563862]
[1673120105902,0.05232691,16953.0,16952.0,3.47248147]
[1673120106947,0.05232691,16953.0,16952.0,3.295867]
[1673120107458,0.05232691,16953.0,16952.0,2.805186]
[1673120107940,0.22912786,16953.0,16952.0,2.8041652]
[1673120108725,0.22912786,16953.0,16952.0,1.6243652]
[1673120108963,0.49433272,16953.0,16952.0,2.25468902]
[1673120109204,0.49433272,16953.0,16952.0,1.66478902]
[1673120109690,0.67123018,16953.0,16952.0,1.66478902]
[1673120110196,0.8484269,16953.0,16952.0,1.66478902]
[1673120110701,0.8484269,16953.0,16952.0,1.07488902]
[1673120111734,0.88384045,16953.0,16952.0,1.07488902]
[1673120111981,0.53014204,16953.0,16952.0,1.07488902]
[1673120113315,0.88398304,16953.0,16952.0,1.07488902]
[1673120114671,0.53014204,16953.0,16952.0,1.07488902]
[1673120117528,1.13782704,16953.0,16952.0,1.07488902]
[1673120117823,0.53014204,16953.0,16952.0,1.07488902]
[1673120118560,1.13782704,16953.0,16952.0,1.07488902]
[1673120118790,1.71708412,16953.0,16952.0,1.07488902]
[1673120119049,1.13782704,16953.0,16952.0,1.07488902]
[1673120119302,0.53014204,16953.0,16952.0,1.07488902]
[1673120119557,0.88371658,16953.0,16952.0,1.07488902]
[1673120119806,0.53014204,16953.0,16952.0,1.07488902]
[1673120120382,0.88371736,16953.0,16952.0,1.07488902]
[1673120127180,1.48371736,16953.0,16952.0,1.07479468]
[1673120128177,0.88371736,16953.0,16952.0,1.07479468]
[1673120131711,1.14879343,16953.0,16952.0,1.07479468]
[1673120131951,0.70639185,16953.0,16952.0,1.07479468]
[1673120139511,1.14879343,16953.0,16952.0,1.07479468]
[1673120139913,0.88371736,16953.0,16952.0,1.07479468]
[1673120143516,0.53014204,16953.0,16952.0,1.07479468]
[1673120145474,0.08774046,16953.0,16952.0,1.07479468]
[1673120145987,0.53000007,16953.0,16952.0,1.07479468]
[1673120147523,0.08774046,16953.0,16952.0,1.07479468]
[1673120149069,0.68774046,16953.0,16952.0,1.0747229]
[1673120150402,1.21894012,16953.0,16952.0,1.0747229]
[1673120151568,0.61894012,16953.0,16952.0,1.0747229]
[1673120155080,0.08774046,16953.0,16952.0,1.0747229]
[1673120161304,0.61894012,16953.0,16952.0,1.0747229]
[1673120163658,1.89826393,16953.0,16952.0,1.0747229]
[1673120164445,2.47752101,16953.0,16952.0,1.0747229]
[1673120164991,2.47752101,16953.0,16952.0,0.55986851]
[1673120165498,1.89826393,16953.0,16952.0,0.55986851]
[1673120165756,1.29057893,16953.0,16952.0,0.55986851]
[1673120166827,1.89826393,16953.0,16952.0,0.55986851]